bitfinex-derivatives/quotes_BNBF0:USTF0_20260110
["timestamp","ask_amount","ask_price","bid_price","bid_amount"]
[1768026235745,0.19154926,909.08,907.81,0.70780421]
[1768026235944,0.19154926,909.08,907.82,0.70780421]
[1768026236150,0.19154926,909.08,907.83,0.70780421]
[1768026236446,0.19154926,909.08,907.84,0.70780421]
[1768026236650,0.19154926,909.08,907.85,0.70780421]
[1768026236850,0.19154926,909.08,907.86,0.70780421]
[1768026237050,0.19154926,909.08,907.87,0.70780421]
[1768026237248,0.19154926,909.08,907.88,0.70780421]
[1768026237453,0.19154926,909.08,907.89,0.70780421]
[1768026237648,0.19154926,909.08,907.9,0.70780421]
[1768026237846,0.19154926,909.08,907.74,1.946]
[1768026238051,0.19154926,909.08,907.75,0.70769659]
[1768026238346,0.19154926,909.08,907.76,0.70769659]
[1768026238549,0.19154926,909.08,907.77,0.70769659]
[1768026238749,0.19154926,909.08,907.78,0.70769659]
[1768026238948,0.19154926,909.08,907.79,0.70769659]
[1768026239152,0.19154926,909.08,907.8,0.70769659]
[1768026239351,0.19154926,909.08,907.81,0.70769659]
[1768026239550,0.19154926,909.08,907.82,0.70769659]
[1768026239752,0.19154926,909.08,907.83,0.70769659]
[1768026239952,0.19154926,909.08,907.84,0.70769659]
[1768026240150,0.19154926,909.08,907.85,0.70769659]
[1768026240349,0.19154926,909.08,907.86,0.70769659]
[1768026240554,0.19154926,909.08,907.87,0.70769659]
[1768026240849,0.19154926,909.08,907.88,0.70769659]
[1768026241049,0.19154926,909.08,907.89,0.70769659]
[1768026241250,0.19154926,909.08,907.74,1.946]
[1768026241452,0.19154926,909.08,907.75,0.70761813]
[1768026241650,0.19154926,909.08,907.76,0.70761813]
[1768026241850,0.19154926,909.08,907.77,0.70761813]
[1768026242050,0.19154926,909.08,907.78,0.70761813]
[1768026242249,0.19154926,909.08,907.79,0.70761813]
[1768026242455,0.19154926,909.08,907.8,0.70761813]
[1768026242754,0.19154926,909.08,907.81,0.70761813]
[1768026242954,0.19154926,909.08,907.82,0.70761813]
[1768026243152,0.19154926,909.08,907.83,0.70761813]
[1768026243351,0.19154926,909.08,907.84,0.70761813]
[1768026243655,0.19154926,909.08,907.74,1.946]
[1768026281791,0.19154926,909.08,907.32,0.82674735]
[1768026281993,0.19154926,909.08,907.33,0.68710771]
[1768026282192,0.19154926,909.08,907.34,0.68710771]
[1768026282395,0.19154926,909.08,907.35,0.68710771]
[1768026282591,0.19154926,909.08,907.36,0.68710771]
[1768026282795,0.19154926,909.08,907.37,0.68710771]
[1768026283096,0.19154926,909.08,907.38,0.68710771]
[1768026283295,0.19154926,909.08,907.39,0.68710771]
[1768026283592,0.19154926,909.08,907.4,0.68710771]
[1768026283792,0.19154926,909.08,907.41,0.68710771]
[1768026283995,0.19154926,909.08,907.42,0.68710771]
[1768026284291,0.19154926,909.08,907.43,0.68710771]
[1768026284498,0.19154926,909.08,907.44,0.68710771]
[1768026284796,0.19154926,909.08,907.45,0.68710771]
[1768026285096,0.19154926,909.08,907.46,0.68710771]
[1768026285291,0.19154926,909.08,907.47,0.68710771]
[1768026285495,0.19154926,909.08,907.48,0.68710771]
[1768026285692,0.19154926,909.08,907.49,0.68710771]
[1768026285994,0.19154926,909.08,907.5,0.68710771]
[1768026286194,0.19154926,909.08,907.51,0.68710771]
[1768026286395,0.19154926,909.08,907.52,0.68710771]
[1768026286696,0.19154926,909.08,907.53,0.68710771]
[1768026286894,0.19154926,909.08,907.54,0.68710771]
[1768026287092,0.19154926,909.08,907.55,0.68710771]
[1768026287296,0.19154926,909.08,907.56,0.68710771]
[1768026287498,0.19154926,909.08,907.43,2.068]
[1768026287796,0.19154926,909.08,907.44,0.6873364]
[1768026287997,0.19154926,909.08,907.45,0.6873364]
[1768026288296,0.19154926,909.08,907.46,0.6873364]
[1768026288596,0.19154926,909.08,907.47,0.6873364]
[1768026288793,0.19154926,909.08,907.48,0.6873364]
[1768026288996,0.19154926,909.08,907.49,0.6873364]
[1768026289196,0.19154926,909.08,907.5,0.6873364]
[1768026289499,0.19154926,909.08,907.51,0.6873364]
[1768026289796,0.19154926,909.08,907.52,0.6873364]
[1768026289993,0.19154926,909.08,907.53,0.6873364]
[1768026290193,0.19154926,909.08,907.54,0.6873364]
[1768026290393,0.19154926,909.08,907.55,0.6873364]
[1768026290695,0.19154926,909.08,907.56,0.6873364]
[1768026290895,0.19154926,909.08,907.43,2.068]
[1768026291096,0.19154926,909.08,907.44,0.68741374]
[1768026291296,0.19154926,909.08,907.45,0.68741374]
[1768026291497,0.19154926,909.08,907.46,0.68741374]
[1768026291794,0.19154926,909.08,907.47,0.68741374]
[1768026292001,0.19154926,909.08,907.48,0.68741374]
[1768026292297,0.19154926,909.08,907.49,0.68741374]
[1768026292493,0.19154926,909.08,907.5,0.68741374]
[1768026292793,0.19154926,909.08,907.51,0.68741374]
[1768026292997,0.19154926,909.08,907.52,0.68741374]
[1768026293294,0.19154926,909.08,907.53,0.68741374]
[1768026293597,0.19154926,909.08,907.54,0.68741374]
[1768026293793,0.19154926,909.08,907.55,0.68741374]
[1768026293995,0.19154926,909.08,907.56,0.68741374]
[1768026294198,0.19154926,909.08,907.57,0.68741374]
[1768026294499,0.19154926,909.08,907.58,0.68741374]
[1768026294699,0.19154926,909.08,907.59,0.68741374]
[1768026294898,0.19154926,909.08,907.6,0.68741374]
[1768026295099,0.19154926,909.08,907.61,0.68741374]
[1768026295300,0.19154926,909.08,907.43,2.068]
[1768026295500,0.19154926,909.08,907.44,0.68730249]
[1768026295797,0.19154926,909.08,907.45,0.68730249]
[1768026296000,0.19154926,909.08,907.46,0.68730249]
[1768026296200,0.19154926,909.08,907.47,0.68730249]
[1768026296401,0.19154926,909.08,907.48,0.68730249]
[1768026296602,0.19154926,909.08,907.49,0.68730249]
[1768026296802,0.19154926,909.08,907.5,0.68730249]
[1768026297003,0.19154926,909.08,907.51,0.68730249]
[1768026297203,0.19154926,909.08,907.52,0.68730249]
[1768026297403,0.19154926,909.08,907.53,0.68730249]
[1768026297603,0.19154926,909.08,907.54,0.68730249]
[1768026297803,0.19154926,909.08,907.55,0.68730249]
[1768026298006,0.19154926,909.08,907.56,0.68730249]
[1768026298202,0.19154926,909.08,907.57,0.68730249]
[1768026298401,0.19154926,909.08,907.58,0.68730249]
[1768026298606,0.19154926,909.08,907.59,0.68730249]
[1768026298808,0.19154926,909.08,907.6,0.68730249]
[1768026299009,0.19154926,909.08,907.61,0.68730249]
[1768026299312,0.19154926,909.08,907.62,0.68730249]
[1768026299509,0.19154926,909.08,907.63,0.68730249]
[1768026299708,0.19154926,909.08,907.43,2.068]
[1768026299904,0.19154926,909.08,907.44,0.68731046]
[1768026300104,0.19154926,909.08,907.45,0.68731046]
[1768026300307,0.19154926,909.08,907.46,0.68731046]
[1768026300505,0.19154926,909.08,907.47,0.68731046]
[1768026300711,0.19154926,909.08,907.48,0.68731046]
[1768026301010,0.19154926,909.08,907.49,0.68731046]
[1768026301309,0.19154926,909.08,907.5,0.68731046]
[1768026301605,0.19154926,909.08,907.51,0.68731046]
[1768026301809,0.19154926,909.08,907.52,0.68731046]
[1768026302011,0.19154926,909.08,907.53,0.68731046]
[1768026302205,0.19154926,909.08,907.54,0.68731046]
[1768026302509,0.19154926,909.08,907.55,0.68731046]
[1768026302709,0.19154926,909.08,907.56,0.68731046]
[1768026302907,0.19154926,909.08,907.57,0.68731046]
[1768026303210,0.19154926,909.08,907.58,0.68731046]
[1768026303410,0.19154926,909.08,907.59,0.68731046]
[1768026303608,0.19154926,909.08,907.6,0.68731046]
[1768026303807,0.19154926,909.08,907.61,0.68731046]
[1768026304010,0.19154926,909.08,907.62,0.68731046]
[1768026304208,0.19154926,909.08,907.63,0.68731046]
[1768026304410,0.19154926,909.08,907.64,0.68731046]
[1768026304613,0.19154926,909.08,907.43,2.068]
[1768026304914,0.19154926,909.08,907.44,0.68739433]
[1768026305113,0.19154926,909.08,907.43,2.068]
[1768026305114,0.19154926,909.08,907.45,0.68739433]
[1768026305309,0.19154926,909.08,907.46,0.68739433]
[1768026305609,0.19154926,909.08,907.47,0.68739433]
[1768026305810,0.19154926,909.08,907.48,0.68739433]
[1768026306015,0.19154926,909.08,907.49,0.68739433]
[1768026306212,0.19154926,909.08,907.5,0.68739433]
[1768026306519,0.19154926,909.08,907.51,0.68739433]
[1768026306815,0.19154926,909.08,907.52,0.68739433]
[1768026307012,0.19154926,909.08,907.53,0.68739433]
[1768026307212,0.19154926,909.08,907.54,0.68739433]
[1768026307416,0.19154926,909.08,907.55,0.68739433]
[1768026307614,0.19154926,909.08,907.56,0.68739433]
[1768026307812,0.19154926,909.08,907.57,0.68739433]
[1768026308016,0.19154926,909.08,907.58,0.68739433]
[1768026308220,0.19154926,909.08,907.59,0.68739433]
[1768026308422,0.19154926,909.08,907.6,0.68739433]
[1768026308723,0.19154926,909.08,907.61,0.68739433]
[1768026308919,0.19154926,909.08,907.62,0.68739433]
[1768026309121,0.19154926,909.08,907.63,0.68739433]
[1768026309321,0.19154926,909.08,907.64,0.68739433]
[1768026309613,0.19154926,909.08,907.65,0.68739433]
[1768026309815,0.19154926,909.08,907.66,0.68739433]
[1768026310023,0.19154926,909.08,907.67,0.68739433]
[1768026310222,0.19154926,909.08,907.68,0.68739433]
[1768026310421,0.19154926,909.08,907.69,0.68739433]
[1768026310615,0.19154926,909.08,907.7,0.68739433]
[1768026310820,0.19154926,909.08,907.71,0.68739433]
[1768026311017,0.19154926,909.08,907.72,0.68739433]
[1768026311318,0.19154926,909.08,907.73,0.68739433]
[1768026311522,0.19154926,909.08,907.74,0.68739433]
[1768026311716,0.19154926,909.08,907.75,0.68739433]
[1768026311917,0.19154926,909.08,907.76,0.68739433]
[1768026312121,0.19154926,909.08,907.77,0.68739433]
[1768026312322,0.19154926,909.08,907.78,0.68739433]
[1768026312522,0.19154926,909.08,907.79,0.68739433]
[1768026312722,0.19154926,909.08,907.8,0.68739433]
[1768026313019,0.19154926,909.08,907.81,0.68739433]
[1768026313222,0.19154926,909.08,907.82,0.68739433]
[1768026313418,0.19154926,909.08,907.83,0.68739433]
[1768026313720,0.19154926,909.08,907.84,0.68739433]
[1768026313923,0.19154926,909.08,907.85,0.68739433]
[1768026314122,0.19154926,909.08,907.86,0.68739433]
[1768026314321,0.19154926,909.08,907.87,0.68739433]
[1768026314518,0.19154926,909.08,907.58,0.82674735]
[1768026314719,0.19154926,909.08,907.59,0.6872415]
[1768026314922,0.19154926,909.08,907.6,0.6872415]
[1768026315218,0.19154926,909.08,907.61,0.6872415]
[1768026315417,0.19154926,909.08,907.62,0.6872415]
[1768026315617,0.19154926,909.08,907.58,0.82674735]
[1768026315618,0.19154926,909.08,907.63,0.6872415]
[1768026315822,0.19154926,909.08,907.64,0.6872415]
[1768026316020,0.19154926,909.08,907.65,0.6872415]
[1768026316224,0.19154926,909.08,907.66,0.6872415]
[1768026316420,0.19154926,909.08,907.67,0.6872415]
[1768026316624,0.19154926,909.08,907.68,0.6872415]
[1768026316825,0.19154926,909.08,907.69,0.6872415]
[1768026317025,0.19154926,909.08,907.7,0.6872415]
[1768026317222,0.19154926,909.08,907.71,0.6872415]
[1768026317424,0.19154926,909.08,907.72,0.6872415]
[1768026317623,0.19154926,909.08,907.73,0.6872415]
[1768026317823,0.19154926,909.08,907.74,0.6872415]
[1768026318026,0.19154926,909.08,907.75,0.6872415]
[1768026318223,0.19154926,909.08,907.76,0.6872415]
[1768026318424,0.19154926,909.08,907.77,0.6872415]
[1768026318624,0.19154926,909.08,907.78,0.6872415]
[1768026318832,0.19154926,909.08,907.79,0.6872415]
[1768026319027,0.19154926,909.08,907.8,0.6872415]
[1768026319229,0.19154926,909.08,907.81,0.6872415]
[1768026319429,0.19154926,909.08,907.82,0.6872415]
[1768026319634,0.19154926,909.08,907.83,0.6872415]
[1768026319831,0.19154926,909.08,907.84,0.6872415]
[1768026320032,0.19154926,909.08,907.85,0.6872415]
[1768026320332,0.19154926,909.08,907.86,0.6872415]
[1768026320532,0.19154926,909.08,907.87,0.6872415]
[1768026320730,0.19154926,909.08,907.69,1.433]
[1768026320933,0.19154926,909.08,907.7,0.68833858]
[1768026321229,0.19154926,909.08,907.71,0.68833858]
[1768026321434,0.19154926,909.08,907.72,0.68833858]
[1768026321631,0.19154926,909.08,907.73,0.68833858]
[1768026321832,0.19154926,909.08,907.74,0.68833858]
[1768026322030,0.19154926,909.08,907.75,0.68833858]
[1768026322329,0.19154926,909.08,907.76,0.68833858]
[1768026322533,0.19154926,909.08,907.77,0.68833858]
[1768026322730,0.19154926,909.08,907.78,0.68833858]
[1768026322928,0.19154926,909.08,907.79,0.68833858]
[1768026323129,0.19154926,909.08,907.8,0.68833858]
[1768026323336,0.19154926,909.08,907.81,0.68833858]
[1768026323535,0.19154926,909.08,907.82,0.68833858]
[1768026323732,0.19154926,909.08,907.83,0.68833858]
[1768026323937,0.19154926,909.08,907.84,0.68833858]
[1768026324236,0.19154926,909.08,907.69,1.433]
[1768026324434,0.19154926,909.08,907.7,0.68823715]
[1768026324637,0.19154926,909.08,907.71,0.68823715]
[1768026324834,0.19154926,909.08,907.72,0.68823715]
[1768026325035,0.19154926,909.08,907.73,0.68823715]
[1768026325338,0.19154926,909.08,907.74,0.68823715]
[1768026325539,0.19154926,909.08,907.75,0.68823715]
[1768026325740,0.19154926,909.08,907.76,0.68823715]
[1768026325940,0.19154926,909.08,907.77,0.68823715]
[1768026326140,0.19154926,909.08,907.78,0.68823715]
[1768026326338,0.19154926,909.08,907.79,0.68823715]
[1768026326537,0.19154926,909.08,907.8,0.68823715]
[1768026326741,0.19154926,909.08,907.81,0.68823715]
[1768026326939,0.19154926,909.08,907.82,0.68823715]
[1768026327137,0.19154926,909.08,907.83,0.68823715]
[1768026327338,0.19154926,909.08,907.69,1.433]
[1768026327541,0.19154926,909.08,907.7,0.68814013]
[1768026327738,0.19154926,909.08,907.71,0.68814013]
[1768026327938,0.19154926,909.08,907.72,0.68814013]
[1768026328142,0.19154926,909.08,907.73,0.68814013]
[1768026328342,0.19154926,909.08,907.74,0.68814013]
[1768026328537,0.19154926,909.08,907.75,0.68814013]
[1768026328742,0.19154926,909.08,907.76,0.68814013]
[1768026328939,0.19154926,909.08,907.77,0.68814013]
[1768026329243,0.19154926,909.08,907.78,0.68814013]
[1768026329441,0.19154926,909.08,907.79,0.68814013]
[1768026329744,0.19154926,909.08,907.8,0.68814013]
[1768026329944,0.19154926,909.08,907.81,0.68814013]
[1768026330144,0.19154926,909.08,907.82,0.68814013]
[1768026330344,0.19154926,909.08,907.83,0.68814013]
[1768026330644,0.19154926,909.08,907.69,1.433]
[1768026330843,0.19154926,909.08,907.7,0.68809851]
[1768026331042,0.19154926,909.08,907.71,0.68809851]
[1768026331246,0.19154926,909.08,907.72,0.68809851]
[1768026331546,0.19154926,909.08,907.73,0.68809851]
[1768026331746,0.19154926,909.08,907.74,0.68809851]
[1768026332044,0.19154926,909.08,907.75,0.68809851]
[1768026332346,0.19154926,909.08,907.76,0.68809851]
[1768026332642,0.19154926,909.08,907.77,0.68809851]
[1768026332840,0.19154926,909.08,907.78,0.68809851]
[1768026333047,0.19154926,909.08,907.79,0.68809851]
[1768026333247,0.19154926,909.08,907.8,0.68809851]
[1768026333444,0.19154926,909.08,907.81,0.68809851]
[1768026333648,0.19154926,909.08,907.82,0.68809851]
[1768026333849,0.19154926,909.08,907.83,0.68809851]
[1768026334049,0.19154926,909.08,907.84,0.68809851]
[1768026334262,0.19154926,909.08,907.85,0.68809851]
[1768026334444,0.19154926,909.08,907.86,0.68809851]
[1768026334646,0.19154926,909.08,907.87,0.68809851]
[1768026334846,0.19154926,909.08,907.69,1.433]
[1768026335147,0.19154926,909.08,907.7,0.68817435]
[1768026335345,0.19154926,909.08,907.71,0.68817435]
[1768026335649,0.19154926,909.08,907.69,1.433]
[1768026335650,0.19154926,909.08,907.72,0.68817435]
[1768026335850,0.19154926,909.08,907.73,0.68817435]
[1768026336150,0.19154926,909.08,907.74,0.68817435]
[1768026336346,0.19154926,909.08,907.75,0.68817435]
[1768026336646,0.19154926,909.08,907.76,0.68817435]
[1768026336847,0.19154926,909.08,907.77,0.68817435]
[1768026337046,0.19154926,909.08,907.78,0.68817435]
[1768026337244,0.19154926,909.08,907.79,0.68817435]
[1768026337444,0.19154926,909.08,907.8,0.68817435]
[1768026337644,0.19154926,909.08,907.81,0.68817435]
[1768026337846,0.19154926,909.08,907.82,0.68817435]
[1768026338046,0.19154926,909.08,907.83,0.68817435]
[1768026338246,0.19154926,909.08,907.84,0.68817435]
[1768026338446,0.19154926,909.08,907.85,0.68817435]
[1768026338648,0.19154926,909.08,907.86,0.68817435]
[1768026338950,0.19154926,909.08,907.87,0.68817435]
[1768026339252,0.19154926,909.08,907.88,0.68817435]
[1768026339448,0.19154926,909.08,907.69,1.433]
[1768026339651,0.19154926,909.08,907.7,0.68844326]
[1768026339848,0.19154926,909.08,907.71,0.68844326]
[1768026340147,0.19154926,909.08,907.72,0.68844326]
[1768026340346,0.19154926,909.08,907.73,0.68844326]
[1768026340553,0.19154926,909.08,907.74,0.68844326]
[1768026340852,0.19154926,909.08,907.75,0.68844326]
[1768026341051,0.19154926,909.08,907.76,0.68844326]
[1768026341251,0.19154926,909.08,907.77,0.68844326]
[1768026341447,0.19154926,909.08,907.78,0.68844326]
[1768026341652,0.19154926,909.08,907.79,0.68844326]
[1768026341948,0.19154926,909.08,907.8,0.68844326]
[1768026342247,0.19154926,909.08,907.81,0.68844326]
[1768026342449,0.19154926,909.08,907.82,0.68844326]
[1768026342652,0.19154926,909.08,907.83,0.68844326]
[1768026342853,0.19154926,909.08,907.84,0.68844326]
[1768026343051,0.19154926,909.08,907.69,1.433]
[1768026343052,0.19154926,909.08,907.85,0.68844326]
[1768026343250,0.19154926,909.08,907.86,0.68844326]
[1768026343450,0.19154926,909.08,907.87,0.68844326]
[1768026343651,0.19154926,909.08,907.69,1.433]
[1768026343652,0.19154926,909.08,907.88,0.68844326]
[1768026343849,0.19154926,909.08,907.89,0.68844326]
[1768026344050,0.19154926,909.08,907.9,0.68844326]
[1768026344250,0.19154926,909.08,907.69,1.433]
[1768026344454,0.19154926,909.08,907.7,0.6889307]
[1768026344654,0.19154926,909.08,907.71,0.6889307]
[1768026344950,0.19154926,909.08,907.72,0.6889307]
[1768026345153,0.19154926,909.08,907.73,0.6889307]
[1768026345354,0.19154926,909.08,907.74,0.6889307]
[1768026345649,0.19154926,909.08,907.75,0.6889307]
[1768026345851,0.19154926,909.08,907.76,0.6889307]
[1768026346055,0.19154926,909.08,907.77,0.6889307]
[1768026346255,0.19154926,909.08,907.78,0.6889307]
[1768026346451,0.19154926,909.08,907.79,0.6889307]
[1768026346652,0.19154926,909.08,907.8,0.6889307]
[1768026346853,0.19154926,909.08,907.81,0.6889307]
[1768026347052,0.19154926,909.08,907.82,0.6889307]
[1768026347252,0.19154926,909.08,907.83,0.6889307]
[1768026347456,0.19154926,909.08,907.84,0.6889307]
[1768026347657,0.19154926,909.08,907.85,0.6889307]
[1768026347858,0.19154926,909.08,907.86,0.6889307]
[1768026348051,0.19154926,909.08,907.87,0.6889307]
[1768026348257,0.19154926,909.08,907.88,0.6889307]
[1768026348460,0.19154926,909.08,907.89,0.6889307]
[1768026348758,0.19154926,909.08,907.9,0.6889307]
[1768026348958,0.19154926,909.08,907.91,0.6889307]
[1768026349159,0.19154926,909.08,907.92,0.6889307]
[1768026349359,0.19154926,909.08,907.93,0.68902927]
[1768026349655,0.19154926,909.08,907.69,1.433]
[1768026349854,0.19154926,909.08,907.7,0.68902927]
[1768026350055,0.19154926,909.08,907.71,0.68902927]
[1768026350254,0.19154926,909.08,907.72,0.68902927]
[1768026350460,0.19154926,909.08,907.73,0.68902927]
[1768026350657,0.19154926,909.08,907.74,0.68902927]
[1768026350857,0.19154926,909.08,907.75,0.68902927]
[1768026351056,0.19154926,909.08,907.76,0.68902927]
[1768026351258,0.19154926,909.08,907.77,0.68902927]
[1768026351457,0.19154926,909.08,907.78,0.68902927]
[1768026351660,0.19154926,909.08,907.79,0.68902927]
[1768026351963,0.19154926,909.08,907.8,0.68902927]
[1768026352163,0.19154926,909.08,907.81,0.68902927]
[1768026352362,0.19154926,909.08,907.82,0.68902927]
[1768026352560,0.19154926,909.08,907.83,0.68902927]
[1768026352760,0.19154926,909.08,907.84,0.68902927]
[1768026352961,0.19154926,909.08,907.85,0.68902927]
[1768026353260,0.19154926,909.08,907.86,0.68902927]
[1768026353568,0.19154926,909.08,907.87,0.69027087]
[1768026353762,0.19154926,909.08,907.88,0.69027087]
[1768026353963,0.19154926,909.08,907.89,0.69027087]
[1768026354161,0.19154926,909.08,907.9,0.69027087]
[1768026354360,0.19154926,909.08,907.91,0.69027087]
[1768026354564,0.19154926,909.08,907.92,0.69027087]
[1768026354764,0.19154926,909.08,907.93,0.69027087]
[1768026354962,0.19154926,909.08,907.94,0.69027087]
[1768026355162,0.19154926,909.08,907.95,0.69027087]
[1768026355360,0.19154926,909.08,907.96,0.69027087]
[1768026355562,0.19154926,909.08,907.97,0.69027087]
[1768026355762,0.19154926,909.08,907.98,0.69027087]
[1768026355962,0.19154926,909.08,907.99,0.69027087]
[1768026356162,0.19154926,909.08,908.0,0.69027087]
[1768026356365,0.19154926,909.08,908.01,0.69027087]
[1768026356566,0.19154926,909.08,908.02,0.69027087]
[1768026356867,0.19154926,909.08,907.73,0.82731525]
[1768026357068,0.19154926,909.08,907.74,0.69014688]
[1768026357264,0.19154926,909.08,907.73,0.82731525]
[1768026357265,0.19154926,909.08,907.75,0.69014688]
[1768026357468,0.19154926,909.08,907.76,0.69014688]
[1768026357766,0.19154926,909.08,907.77,0.69014688]
[1768026357971,0.19154926,909.08,907.78,0.69014688]
[1768026358167,0.19154926,909.08,907.79,0.69014688]
[1768026358365,0.19154926,909.08,907.8,0.69014688]
[1768026358566,0.19154926,909.08,907.81,0.69014688]
[1768026358766,0.19154926,909.08,907.82,0.69014688]
[1768026358966,0.19154926,909.08,907.83,0.69014688]
[1768026359166,0.19154926,909.08,907.84,0.69014688]
[1768026359364,0.19154926,909.08,907.85,0.69014688]
[1768026359566,0.19154926,909.08,907.86,0.69014688]
[1768026359770,0.19154926,909.08,907.87,0.69014688]
[1768026360069,0.19154926,909.08,907.88,0.69014688]
[1768026360264,0.19154926,909.08,907.89,0.69014688]
[1768026360468,0.19154926,909.08,907.9,0.69014688]
[1768026360669,0.19154926,909.08,907.91,0.69014688]
[1768026360871,0.19154926,909.08,907.92,0.69014688]
[1768026361066,0.19154926,909.08,907.93,0.69014688]
[1768026361269,0.19154926,909.08,907.94,0.69014688]
[1768026361466,0.19154926,909.08,907.95,0.69014688]
[1768026361670,0.19154926,909.08,907.96,0.69014688]
[1768026361871,0.19154926,909.08,907.97,0.69014688]
[1768026362071,0.19154926,909.08,907.98,0.69014688]
[1768026362271,0.19154926,909.08,907.99,0.69014688]
[1768026362468,0.19154926,909.08,908.0,0.69014688]
[1768026362767,0.19154926,909.08,907.71,0.82731525]
[1768026363066,0.19154926,909.08,907.72,0.69012954]
[1768026363270,0.19154926,909.08,907.73,0.69012954]
[1768026363469,0.19154926,909.08,907.74,0.69012954]
[1768026363670,0.19154926,909.08,907.75,0.69012954]
[1768026363971,0.19154926,909.08,907.76,0.69012954]
[1768026364171,0.19154926,909.08,907.77,0.69012954]
[1768026364368,0.19154926,909.08,907.78,0.69012954]
[1768026364572,0.19154926,909.08,907.79,0.69012954]
[1768026364768,0.19154926,909.08,907.8,0.69012954]
[1768026364972,0.19154926,909.08,907.81,0.69012954]
[1768026365172,0.19154926,909.08,907.82,0.69012954]
[1768026365370,0.19154926,909.08,907.83,0.69012954]
[1768026365576,0.19154926,909.08,907.84,0.69012954]
[1768026365770,0.19154926,909.08,907.85,0.69012954]
[1768026366071,0.19154926,909.08,907.86,0.69012954]
[1768026366270,0.19154926,909.08,907.87,0.69012954]
[1768026366570,0.19154926,909.08,907.88,0.69012954]
[1768026366873,0.19154926,909.08,907.89,0.69012954]
[1768026367073,0.19154926,909.08,907.69,1.433]
[1768026367074,0.19154926,909.08,907.9,0.69012954]
[1768026367269,0.19154926,909.08,907.69,1.433]
[1768026367473,0.19154926,909.08,907.7,0.68985032]
[1768026367673,0.19154926,909.08,907.71,0.68985032]
[1768026367872,0.19154926,909.08,907.72,0.68985032]
[1768026368072,0.19154926,909.08,907.73,0.68985032]
[1768026368273,0.19154926,909.08,907.74,0.68985032]
[1768026368473,0.19154926,909.08,907.75,0.68985032]
[1768026368674,0.19154926,909.08,907.76,0.68985032]
[1768026368873,0.19154926,909.08,907.77,0.68985032]
[1768026369074,0.19154926,909.08,907.78,0.68985032]
[1768026369371,0.19154926,909.08,907.79,0.68985032]
[1768026369570,0.19154926,909.08,907.8,0.68985032]
[1768026369774,0.19154926,909.08,907.81,0.68985032]
[1768026370069,0.19154926,909.08,907.82,0.68985032]
[1768026370273,0.19154926,909.08,907.83,0.68985032]
[1768026370474,0.19154926,909.08,907.84,0.68985032]
[1768026370674,0.19154926,909.08,907.85,0.68985032]
[1768026370874,0.19154926,909.08,907.69,1.433]
[1768026371074,0.19154926,909.08,907.7,0.68965617]
[1768026371269,0.19154926,909.08,907.71,0.68965617]
[1768026371474,0.19154926,909.08,907.72,0.68965617]
[1768026371672,0.19154926,909.08,907.73,0.68965617]
[1768026371970,0.19154926,909.08,907.74,0.68965617]
[1768026372175,0.19154926,909.08,907.75,0.68965617]
[1768026372471,0.19154926,909.08,907.4,1.1023075]
[1768026372472,0.19154926,909.08,907.76,0.68965617]
[1768026372675,0.19154926,909.08,907.77,0.68965617]
[1768026372876,0.19154926,909.08,907.55,0.82731525]
[1768026372877,0.19154926,909.08,907.78,0.68965617]
[1768026373076,0.19154926,909.08,907.79,0.68965617]
[1768026373275,0.19154926,909.08,907.8,0.68965617]
[1768026373474,0.19154926,909.08,907.81,0.68965617]
[1768026373673,0.19154926,909.08,907.82,0.68965617]
[1768026373874,0.19154926,909.08,907.83,0.68965617]
[1768026374073,0.19154926,909.08,907.54,0.82731525]
[1768026374276,0.19154926,909.08,907.55,0.68945635]
[1768026374476,0.19154926,909.08,907.56,0.68945635]
[1768026374676,0.19154926,909.08,907.57,0.68945635]
[1768026374875,0.19154926,909.08,907.58,0.68945635]
[1768026375080,0.19154926,909.08,907.59,0.68945635]
[1768026375280,0.19154926,909.08,907.6,0.68945635]
[1768026375476,0.19154926,909.08,907.61,0.68945635]
[1768026375681,0.19154926,909.08,907.62,0.68945635]
[1768026375879,0.19154926,909.08,907.58,1.352]
[1768026375880,0.19154926,909.08,907.63,0.68945635]
[1768026376082,0.19154926,909.08,907.64,0.68945635]
[1768026376282,0.19154926,909.08,907.65,0.68945635]
[1768026376479,0.19154926,909.08,907.66,0.68945635]
[1768026376779,0.19154926,909.08,907.67,0.68945635]
[1768026377086,0.19154926,909.08,907.68,0.68945635]
[1768026377280,0.19154926,909.08,907.69,0.68945635]
[1768026377584,0.19154926,909.08,907.7,0.68945635]
[1768026377781,0.19154926,909.08,907.71,0.68945635]
[1768026378085,0.19154926,909.08,907.72,0.68945635]
[1768026378280,0.19154926,909.08,907.58,1.352]
[1768026378481,0.19154926,909.08,907.59,0.68895142]
[1768026378782,0.19154926,909.08,907.6,0.68895142]
[1768026379084,0.19154926,909.08,907.61,0.68895142]
[1768026379284,0.19154926,909.08,907.62,0.68895142]
[1768026379488,0.19154926,909.08,907.63,0.68895142]
[1768026379685,0.19154926,909.08,907.64,0.68895142]
[1768026379884,0.19154926,909.08,907.65,0.68895142]
[1768026380186,0.19154926,909.08,907.66,0.68895142]
[1768026380387,0.19154926,909.08,907.58,1.352]
[1768026380388,0.19154926,909.08,907.67,0.68895142]